fUST/lending_fUST_20240423
["ID","MTS","AMOUNT","RATE_DAILY","PERIOD"]
[323301874,1713882638774,-500.0,0.00019452,2]
[323301875,1713882638783,-500.0,0.00019452,2]
[323301876,1713882638793,-607.19,0.00019452,2]
[323301877,1713882638802,-2240.82,0.00019452,2]
[323301878,1713882638812,-311.394215,0.00019452,2]
[323301880,1713882638822,-1473.84,0.00019452,2]
[323301882,1713882638832,-500.0,0.00019452,2]
[323301884,1713882638842,-457.47137992,0.00019452,2]
[323301886,1713882638853,-500.0,0.00019452,2]
[323301888,1713882638863,-500.0,0.00019452,2]
[323301890,1713882638873,-500.0,0.00019452,2]
[323301892,1713882638883,-311.394215,0.00019452,2]
[323301894,1713882638892,-500.0,0.00019452,2]
[323301896,1713882638902,-500.0,0.00019452,2]
[323301898,1713882638912,-151.0,0.00019452,2]
[323301900,1713882638922,-500.0,0.00019452,2]
[323301902,1713882638931,-500.0,0.00019452,2]
[323301904,1713882638943,-659.3,0.00019452,2]
[323301906,1713882638952,-2085.29,0.00019452,2]
[323301908,1713882638962,-500.0,0.00019452,2]
[323301910,1713882638973,-500.0,0.00019452,2]
[323301912,1713882638988,-500.0,0.00019452,2]
[323301914,1713882638997,-500.0,0.00019452,2]
[323301916,1713882639007,-500.0,0.00019452,2]
[323301918,1713882639017,-500.0,0.00019452,2]
[323301921,1713882639027,-528.56,0.00019452,2]
[323301922,1713882639036,-561.44,0.00019452,2]
[323301924,1713882639046,-3337.64,0.00019452,2]
[323301926,1713882639056,-500.0,0.00019452,2]
[323301928,1713882639066,-500.0,0.00019452,2]
[323301930,1713882639075,-3365.21,0.00019452,2]
[323301932,1713882639085,-296.97635626,0.00019452,2]
[323301934,1713882639095,-500.0,0.00019452,2]
[323301936,1713882639105,-1933.81,0.00019452,2]
[323301938,1713882639115,-151.0,0.00019452,2]
[323301941,1713882639125,-500.0,0.00019452,2]
[323301943,1713882639135,-1239.758843,0.00019452,2]
[323301944,1713882639145,-500.0,0.00019452,2]
[323301946,1713882639154,-1239.758843,0.00019452,2]
[323301948,1713882639164,-151.0,0.00019452,2]
[323301950,1713882639173,-500.0,0.00019452,2]
[323301952,1713882639184,-151.0,0.00019452,2]
[323301954,1713882639197,-10276.06,0.00019452,2]
[323301956,1713882639206,-507.72233272,0.00019452,2]
[323301958,1713882639216,-603.2,0.00019452,2]
[323301960,1713882639225,-678.91,0.00019452,2]
[323301962,1713882639235,-951.59,0.00019452,2]
[323301964,1713882639249,-869.83,0.00019452,2]
[323301966,1713882639259,-500.0,0.00019452,2]
[323301969,1713882639268,-4316.46,0.00019452,2]
[323301970,1713882639277,-500.0,0.00019452,2]
[323301972,1713882639286,-680.78,0.00019452,2]
[323301974,1713882639296,-500.0,0.00019452,2]
[323301977,1713882639305,-9.27847105,0.00019452,2]
[323301979,1713882639318,-1520.28152895,0.00019452,2]
[323301981,1713882639327,-500.0,0.00019452,2]
[323301983,1713882639337,-500.0,0.00019452,2]
[323301985,1713882639346,-500.0,0.00019452,2]
[323301987,1713882639357,-500.0,0.00019452,2]
[323301989,1713882639366,-14374.44,0.00019452,2]
[323301991,1713882639375,-989.87,0.00019452,2]
[323301993,1713882639385,-258.50268997,0.00019489,2]
[323301995,1713882639394,-151.0,0.00019489,2]
[323301997,1713882639404,-151.0,0.00019489,2]
[323301999,1713882639414,-823.0,0.00019602,2]
[323302001,1713882639423,-151.0,0.00019626,2]
[323302003,1713882639432,-151.0,0.00019626,2]
[323302005,1713882639444,-151.0,0.00019626,2]
[323302007,1713882639453,-258.50268997,0.00019626,2]
[323302009,1713882639463,-500.0,0.00019726,2]
[323302011,1713882639472,-500.0,0.00019726,2]
[323302013,1713882639482,-500.0,0.00019726,2]
[323302015,1713882639491,-500.0,0.00019726,2]
[323302017,1713882639501,-500.0,0.00019726,2]
[323302019,1713882639512,-500.0,0.00019726,2]
[323302021,1713882639521,-500.0,0.00019726,2]
[323302023,1713882639531,-500.0,0.00019726,2]
[323302025,1713882639541,-500.0,0.00019726,2]
[323302027,1713882639550,-151.0,0.00019726,2]
[323302029,1713882639560,-500.0,0.00019726,2]
[323302031,1713882639570,-151.0,0.00019726,2]
[323302033,1713882639579,-352.22110512,0.00019726,2]
[323302035,1713882639589,-1342.03,0.00019726,2]
[323302037,1713882639597,-151.0,0.00019726,2]
[323302039,1713882639607,-810.6,0.00019726,2]
[323302053,1713882639726,-500.0,0.00019726,2]
[323302055,1713882639735,-302.42,0.00019726,2]
[323302057,1713882639745,-500.0,0.00019726,2]
[323302059,1713882639755,-500.0,0.00019726,2]
[323302061,1713882639764,-500.0,0.00019726,2]
[323302063,1713882639773,-500.0,0.00019726,2]
[323302065,1713882639783,-151.0,0.00019726,2]
[323302067,1713882639791,-975.61,0.00019726,2]
[323302069,1713882639801,-699.75,0.00019726,2]
[323302071,1713882639810,-151.0,0.00019726,2]
[323302073,1713882639820,-521.81,0.00019726,2]
[323302075,1713882639829,-636.01,0.00019726,2]
[323302077,1713882639838,-500.0,0.00019726,2]
[323302079,1713882639849,-500.0,0.00019726,2]
[323302081,1713882639860,-500.0,0.00019726,2]
[323302083,1713882639870,-1113.14,0.00019726,2]
[323302085,1713882639879,-500.0,0.00019726,2]
[323302087,1713882639889,-647.8094846,0.00019726,2]
[323302089,1713882639898,-517.7551783,0.00019726,2]
[323302091,1713882639908,-572.1,0.00019726,2]
[323302092,1713882639917,-500.0,0.00019726,2]
[323302093,1713882639926,-500.0,0.00019726,2]
[323302094,1713882639935,-500.0,0.00019726,2]
[323302095,1713882639946,-1232.81,0.00019726,2]
[323302097,1713882639956,-500.0,0.00019726,2]
[323302099,1713882639965,-786.44,0.00019726,2]
[323302101,1713882639975,-500.0,0.00019726,2]
[323302103,1713882639986,-151.0,0.00019726,2]
[323302105,1713882639996,-151.0,0.00019726,2]
[323302106,1713882640005,-225.99638695,0.00019726,2]
[323302107,1713882640014,-500.0,0.00019726,2]
[323302108,1713882640024,-500.0,0.00019726,2]
[323302109,1713882640033,-500.0,0.00019726,2]
[323302110,1713882640043,-500.0,0.00019726,2]
[323302112,1713882640053,-500.0,0.00019726,2]
[323302113,1713882640062,-500.0,0.00019726,2]
[323302114,1713882640071,-500.0,0.00019726,2]
[323302115,1713882640080,-500.0,0.00019726,2]
[323302116,1713882640090,-500.0,0.00019726,2]
[323302117,1713882640099,-500.0,0.00019726,2]
[323302119,1713882640109,-935.633361,0.00019726,2]
[323302121,1713882640119,-500.0,0.00019726,2]
[323302122,1713882640128,-935.633361,0.00019726,2]
[323302124,1713882640138,-500.0,0.00019726,2]
[323302125,1713882640148,-1291.88,0.00019726,2]
[323302127,1713882640157,-838.4,0.00019726,2]
[323302129,1713882640166,-151.0,0.00019726,2]
[323302131,1713882640175,-501.35,0.00019726,2]
[323302133,1713882640185,-151.0,0.00019726,2]
[323302134,1713882640198,-500.0,0.00019726,2]
[323302136,1713882640207,-663.24,0.00019726,2]
[323302137,1713882640216,-738.89,0.00019726,2]
[323302139,1713882640225,-500.0,0.00019726,2]
[323302141,1713882640234,-281.256493,0.00019726,2]
[323302142,1713882640243,-853.84,0.00019726,2]
[323302144,1713882640252,-1913.54,0.00019726,2]
[323302145,1713882640260,-500.0,0.00019726,2]
[323302146,1713882640269,-1149.27,0.00019726,2]
[323302149,1713882640278,-500.0,0.00019726,2]
[323302150,1713882640287,-500.0,0.00019726,2]
[323302152,1713882640296,-682.97,0.00019726,2]
[323302153,1713882640305,-198.88,0.00019726,2]
[323302154,1713882640314,-732.15,0.00019726,2]
[323302156,1713882640323,-741.74,0.00019726,2]
[323302157,1713882640332,-151.0,0.00019726,2]
[323302159,1713882640341,-500.0,0.00019726,2]
[323302160,1713882640351,-1205.1,0.00019726,2]
[323302162,1713882640360,-2185.19,0.00019726,2]
[323302163,1713882640369,-1502.07,0.00019726,2]
[323302164,1713882640378,-500.0,0.00019726,2]
[323302166,1713882640387,-500.0,0.00019726,2]
[323302167,1713882640396,-500.0,0.00019726,2]
[323302169,1713882640405,-756.58,0.00019726,2]
[323302170,1713882640415,-890.39,0.00019726,2]
[323302171,1713882640424,-500.0,0.00019726,2]
[323302173,1713882640433,-6958.05,0.00019726,2]
[323302174,1713882640444,-500.0,0.00019726,2]
[323302176,1713882640452,-12364.1,0.00019726,2]
[323302177,1713882640461,-500.0,0.00019726,2]
[323302178,1713882640470,-1583.56,0.00019726,2]
[323302180,1713882640479,-985.26,0.00019726,2]
[323302181,1713882640488,-500.0,0.00019726,2]
[323302183,1713882640497,-23311.91,0.00019726,2]
[323302184,1713882640507,-500.0,0.00019726,2]
[323302186,1713882640516,-1491.68,0.00019726,2]
[323302187,1713882640525,-640.57,0.00019726,2]
[323302188,1713882640535,-500.0,0.00019726,2]
[323302190,1713882640544,-500.0,0.00019726,2]
[323302191,1713882640554,-500.0,0.00019726,2]
[323302193,1713882640563,-607.19,0.00019726,2]
[323302194,1713882640573,-2240.82,0.00019726,2]
[323302195,1713882640582,-311.394215,0.00019726,2]
[323302197,1713882640591,-1473.84,0.00019726,2]
[323302198,1713882640600,-500.0,0.00019726,2]
[323302200,1713882640609,-500.0,0.00019726,2]
[323302201,1713882640619,-500.0,0.00019726,2]
[323302203,1713882640628,-500.0,0.00019726,2]
[323302204,1713882640637,-311.394215,0.00019726,2]
[323302205,1713882640646,-500.0,0.00019726,2]
[323302207,1713882640656,-500.0,0.00019726,2]
[323302208,1713882640665,-151.0,0.00019726,2]
[323302210,1713882640674,-659.3,0.00019726,2]
[323302211,1713882640683,-2085.29,0.00019726,2]
[323302212,1713882640695,-503.09762238,0.00019726,2]
[323302214,1713882640704,-500.0,0.00019726,2]
[323302215,1713882640713,-500.0,0.00019726,2]
[323302217,1713882640723,-500.0,0.00019726,2]
[323302218,1713882640732,-528.56,0.00019726,2]
[323302220,1713882640742,-3337.64,0.00019726,2]
[323302221,1713882640753,-500.0,0.00019726,2]
[323302222,1713882640763,-618.17248374,0.00019726,2]
[323302224,1713882640773,-3365.21,0.00019726,2]
[323302225,1713882640782,-1933.81,0.00019726,2]
[323302227,1713882640792,-160.66869,0.00019726,2]
[323302228,1713882640801,-1239.758843,0.00019726,2]
[323302230,1713882640811,-1239.758843,0.00019726,2]
[323302231,1713882640821,-1239.758843,0.00019726,2]
[323302232,1713882640831,-1239.758843,0.00019726,2]
[323302234,1713882640841,-151.0,0.00019726,2]
[323302235,1713882640851,-151.0,0.00019726,2]
[323302237,1713882640860,-500.0,0.00019726,2]
[323302238,1713882640870,-275.872255,0.00019726,2]
[323302240,1713882640879,-10276.06,0.00019726,2]
[323302241,1713882640889,-678.91,0.00019726,2]
[323302242,1713882640899,-951.59,0.00019726,2]
[323302244,1713882640909,-869.83,0.00019726,2]
[323302245,1713882640918,-500.0,0.00019726,2]
[323302247,1713882640927,-4316.46,0.00019726,2]
[323302249,1713882640936,-502.50650304,0.00019726,2]
[323302251,1713882640948,-680.78,0.00019726,2]
[323302254,1713882640957,-1529.56,0.00019726,2]
[323302255,1713882640967,-500.0,0.00019726,2]
[323302257,1713882640978,-500.0,0.00019726,2]
[323302258,1713882640987,-500.0,0.00019726,2]
[323302259,1713882640996,-500.0,0.00019726,2]
[323302261,1713882641006,-14374.44,0.00019726,2]
[323302262,1713882641018,-989.87,0.00019726,2]
[323302264,1713882641027,-250.0,0.00019863,2]
[323302265,1713882641036,-156.08493432,0.00019998,2]
[323302267,1713882641047,-1674.53760629,0.00019998,2]
[323302268,1713882641056,-227.42172021,0.00019998,2]
[323302269,1713882641065,-296.02935564,0.00019998,2]
[323302271,1713882641074,-1087.28742838,0.00019998,2]
[323302272,1713882641084,-154.82968734,0.00019998,2]
[323302274,1713882641094,-154.82968734,0.00019998,2]
[323302275,1713882641104,-154.82968734,0.00019998,2]
[323302277,1713882641113,-154.82968734,0.00019998,2]
[323302278,1713882641123,-154.82968734,0.00019998,2]
[323302279,1713882641133,-471.58731213,0.00019998,2]
[323302281,1713882641143,-259.4890615,0.00019998,2]
[323302282,1713882641152,-155.55822462,0.00019998,2]
[323302283,1713882641162,-154.86062544,0.00019998,2]
[323302285,1713882641171,-154.82968734,0.00019999,2]
[323302286,1713882641181,-1405.43580599,0.00019999,2]
[323302288,1713882641190,-14133.60960818,0.0002,2]
[323302289,1713882641203,-319.72058798,0.0002,2]
[323302290,1713882641212,-222.53353118,0.0002,2]
[323302292,1713882641221,-154.82968734,0.0002,2]
[323302294,1713882641243,-2769.07414268,0.0002,2]
[323302295,1713882641253,-400.0,0.0002,2]
[323302297,1713882641262,-5459.67159958,0.0002,2]
[323302298,1713882641272,-241.51912105,0.0002,2]
[323302299,1713882641281,-154.82968734,0.0002,2]
[323302301,1713882641291,-354.80715765,0.0002,2]
[323302302,1713882641300,-238.88786072,0.0002,2]
[323302304,1713882641309,-80000.0,0.0002,2]
[323302305,1713882641318,-678.04287141,0.0002,2]
[323302306,1713882641327,-17158.02950796,0.0002,2]
[323302308,1713882641336,-1684.01811317,0.0002,2]
[323302309,1713882641345,-154.82968734,0.0002,2]
[323302311,1713882641354,-154.82968734,0.0002,2]
[323302312,1713882641363,-277.98874346,0.0002,2]
[323302314,1713882641373,-524.5590718,0.0002,4]
[323302315,1713882641382,-154.82968734,0.0002,2]
[323302316,1713882641390,-2000.0,0.0002,2]
[323302318,1713882641399,-2000.0,0.0002,2]
[323302319,1713882641408,-2000.0,0.0002,2]
[323302321,1713882641418,-1420.0,0.0002,2]
[323302322,1713882641428,-452.15187981,0.0002,2]
[323302323,1713882641437,-500.0,0.0002,2]
[323302325,1713882641449,-500.0,0.0002,2]
[323302326,1713882641456,-500.0,0.0002,2]
[323302328,1713882641466,-500.0,0.0002,2]
[323302329,1713882641475,-500.0,0.0002,2]
[323302330,1713882641484,-500.0,0.0002,2]
[323302332,1713882641493,-503.3955291,0.0002,2]
[323302333,1713882641502,-500.0,0.0002,2]
[323302335,1713882641511,-500.0,0.0002,2]
[323302336,1713882641519,-500.0,0.0002,2]
[323302337,1713882641525,-151.0,0.0002,2]
[323302339,1713882641532,-151.0,0.0002,2]
[323302340,1713882641541,-1342.03,0.0002,2]
[323302342,1713882641548,-810.6,0.0002,2]
[323302343,1713882641555,-500.0,0.0002,2]
[323302344,1713882641564,-500.0,0.0002,2]
[323302346,1713882641572,-500.0,0.0002,2]
[323302347,1713882641581,-500.0,0.0002,2]
[323302349,1713882641590,-500.0,0.0002,2]
[323302350,1713882641600,-151.0,0.0002,2]
[323302351,1713882641609,-975.61,0.0002,2]
[323302353,1713882641618,-699.75,0.0002,2]
[323302354,1713882641627,-151.0,0.0002,2]
[323302356,1713882641636,-151.0,0.0002,2]
[323302357,1713882641646,-521.81,0.0002,2]
[323302358,1713882641655,-636.01,0.0002,2]
[323302359,1713882641664,-200.0,0.0002,2]
[323302360,1713882641672,-500.0,0.0002,2]
[323302361,1713882641681,-500.0,0.0002,2]
[323302362,1713882641689,-500.0,0.0002,2]
[323302363,1713882641699,-1113.14,0.0002,2]
[323302364,1713882641708,-448.05,0.0002,2]
[323302365,1713882641717,-572.1,0.0002,2]
[323302366,1713882641727,-500.0,0.0002,2]
[323302367,1713882641737,-500.0,0.0002,2]
[323302368,1713882641746,-500.0,0.0002,2]
[323302369,1713882641757,-1232.81,0.0002,2]
[323302370,1713882641767,-500.0,0.0002,2]
[323302371,1713882641777,-786.44,0.0002,2]
[323302372,1713882641787,-393.9306777,0.0002,2]
[323302373,1713882641797,-151.0,0.0002,2]
[323302374,1713882641808,-151.0,0.0002,2]
[323302378,1713882641817,-500.0,0.0002,2]
[323302379,1713882641923,-500.0,0.0002,2]
[323302381,1713882641934,-199.65091911,0.0002,2]
[323302382,1713882641943,-500.0,0.0002,2]
[323302383,1713882641954,-553.86469299,0.0002,2]
[323302385,1713882641963,-500.0,0.0002,2]
[323302386,1713882641977,-500.0,0.0002,2]
[323302388,1713882641987,-500.0,0.0002,2]
[323302389,1713882641996,-500.0,0.0002,2]
[323302390,1713882642006,-575.62259905,0.0002,2]
[323302392,1713882642016,-935.633361,0.0002,2]
[323302393,1713882642026,-935.633361,0.0002,2]
[323302395,1713882642036,-500.0,0.0002,2]
[323302396,1713882642047,-935.633361,0.0002,2]
[323302398,1713882642056,-935.633361,0.0002,2]
[323302399,1713882642066,-935.633361,0.0002,2]
[323302400,1713882642076,-935.633361,0.0002,2]
[323302402,1713882642086,-500.0,0.0002,2]
[323302403,1713882642095,-1291.88,0.0002,2]
[323302405,1713882642104,-838.4,0.0002,2]
[323302406,1713882642114,-151.0,0.0002,2]
[323302407,1713882642124,-151.0,0.0002,2]
[323302409,1713882642133,-151.0,0.0002,2]
[323302410,1713882642144,-501.35,0.0002,2]
[323302412,1713882642155,-151.0,0.0002,2]
[323302413,1713882642165,-151.0,0.0002,2]
[323302415,1713882642174,-151.0,0.0002,2]
[323302416,1713882642185,-500.0,0.0002,2]
[323302417,1713882642196,-663.24,0.0002,2]
[323302419,1713882642206,-738.89,0.0002,2]
[323302420,1713882642217,-500.0,0.0002,2]
[323302422,1713882642227,-853.84,0.0002,2]
[323302423,1713882642238,-1913.54,0.0002,2]
[323302425,1713882642249,-356.37,0.0002,2]
[323302426,1713882642258,-1149.27,0.0002,2]
[323302427,1713882642267,-500.0,0.0002,2]
[323302429,1713882642276,-500.0,0.0002,2]
[323302430,1713882642286,-682.97,0.0002,2]
[323302432,1713882642295,-732.15,0.0002,2]
[323302433,1713882642304,-741.74,0.0002,2]
[323302435,1713882642313,-151.0,0.0002,2]
[323302436,1713882642322,-151.0,0.0002,2]
[323302437,1713882642332,-192.589953,0.0002,2]
[323302439,1713882642342,-500.0,0.0002,2]
[323302440,1713882642352,-1205.1,0.0002,2]
[323302442,1713882642362,-226.02054247,0.0002,2]
[323302560,1713882644713,-993.90962449,0.00019177,2]
[323302562,1713882644723,-500.0,0.00019178,2]
[323302563,1713882644732,-500.0,0.00019178,2]
[323302565,1713882644742,-329.79531014,0.00019999,2]
[323302566,1713882644751,-1959.16945753,0.0002,2]
[323302567,1713882644761,-1502.07,0.0002,2]
[323302569,1713882644770,-500.0,0.0002,2]
[323302570,1713882644779,-500.0,0.0002,2]
[323302572,1713882644788,-500.0,0.0002,2]
[323302573,1713882644797,-756.58,0.0002,2]
[323302574,1713882644807,-890.39,0.0002,2]
[323302576,1713882644816,-500.0,0.0002,2]
[323302577,1713882644826,-273.38560784,0.0002,2]
[323302579,1713882644838,-6684.66439216,0.0002,2]
[323302580,1713882644847,-500.0,0.0002,2]
[323302582,1713882644856,-2870.75549047,0.0002,2]
[323302671,1713882646753,-500.0,0.00019178,2]
[323302672,1713882646763,-2783.66,0.00019178,2]
[323302674,1713882646772,-500.0,0.00019452,2]
[323302675,1713882646781,-500.0,0.00019726,2]
[323302677,1713882646791,-681.02656791,0.00019999,2]
[323302678,1713882646800,-9493.34450953,0.0002,2]
[323302679,1713882646809,-500.0,0.0002,2]
[323302681,1713882646818,-1583.56,0.0002,2]
[323302682,1713882646828,-985.26,0.0002,2]
[323302684,1713882646837,-23311.91,0.0002,2]
[323302685,1713882646846,-500.0,0.0002,2]
[323302687,1713882646855,-500.0,0.0002,2]
[323302688,1713882646865,-1491.68,0.0002,2]
[323302689,1713882646874,-640.57,0.0002,2]
[323302691,1713882646883,-500.0,0.0002,2]
[323302692,1713882646892,-500.0,0.0002,2]
[323302693,1713882646901,-208.09054347,0.0002,2]
[323302694,1713882646911,-607.19,0.0002,2]
[323302695,1713882646920,-2240.82,0.0002,2]
[323302696,1713882646929,-311.394215,0.0002,2]
[323302697,1713882646939,-311.394215,0.0002,2]
[323302698,1713882646949,-1473.84,0.0002,2]
[323302699,1713882646959,-500.0,0.0002,2]
[323302700,1713882646969,-311.394215,0.0002,2]
[323302701,1713882646981,-500.0,0.0002,2]
[323302702,1713882646990,-500.0,0.0002,2]
[323302703,1713882646999,-311.394215,0.0002,2]
[323302704,1713882647008,-311.394215,0.0002,2]
[323302705,1713882647018,-500.0,0.0002,2]
[323302706,1713882647027,-311.394215,0.0002,2]
[323302707,1713882647037,-500.0,0.0002,2]
[323302709,1713882647046,-151.0,0.0002,2]
[323302711,1713882647056,-151.0,0.0002,2]
[323302713,1713882647065,-151.0,0.0002,2]
[323302714,1713882647074,-659.3,0.0002,2]
[323302716,1713882647083,-2085.29,0.0002,2]
[323302717,1713882647092,-500.0,0.0002,2]
[323302718,1713882647101,-500.0,0.0002,2]
[323302720,1713882647110,-528.56,0.0002,2]
[323302721,1713882647120,-3337.64,0.0002,2]
[323302723,1713882647129,-1058.56,0.0002,2]
[323302724,1713882647138,-500.0,0.0002,2]
[323302725,1713882647147,-3365.21,0.0002,2]
[323302727,1713882647156,-1933.81,0.0002,2]
[323302728,1713882647165,-1239.758843,0.0002,2]
[323302730,1713882647175,-1239.758843,0.0002,2]
[323302731,1713882647184,-1239.758843,0.0002,2]
[323302732,1713882647194,-1239.758843,0.0002,2]
[323302734,1713882647208,-1239.758843,0.0002,2]
[323302735,1713882647218,-1239.758843,0.0002,2]
[323302737,1713882647228,-151.0,0.0002,2]
[323302738,1713882647237,-151.0,0.0002,2]
[323302739,1713882647246,-151.0,0.0002,2]
[323302741,1713882647256,-500.0,0.0002,2]
[323302742,1713882647265,-10276.06,0.0002,2]
[323302744,1713882647274,-678.91,0.0002,2]
[323302745,1713882647283,-951.59,0.0002,2]
[323302746,1713882647292,-869.83,0.0002,2]
[323302748,1713882647301,-500.0,0.0002,2]
[323302749,1713882647310,-4316.46,0.0002,2]
[323302751,1713882647318,-680.78,0.0002,2]
[323302752,1713882647328,-1529.56,0.0002,2]
[323302754,1713882647337,-500.0,0.0002,2]
[323302755,1713882647346,-500.0,0.0002,2]
[323302756,1713882647355,-500.0,0.0002,2]
[323302758,1713882647364,-14374.44,0.0002,2]
[323302759,1713882647373,-989.87,0.0002,2]
[323302761,1713882647382,-200.0,0.0002,2]
[323302762,1713882647391,-500.0,0.0002,2]
[323302763,1713882647400,-1032.92,0.0002026,3]
[323302765,1713882647409,-500.0,0.00020273,2]
[323302766,1713882647419,-485.57889851,0.00020273,2]
[323302768,1713882647429,-500.0,0.00020273,2]
[323302769,1713882647438,-500.0,0.00020273,2]
[323302770,1713882647450,-500.0,0.00020273,2]
[323302772,1713882647458,-500.0,0.00020273,2]
[323302773,1713882647467,-500.0,0.00020273,2]
[323302775,1713882647476,-500.0,0.00020273,2]
[323302776,1713882647485,-262.55578694,0.00020273,2]
[323302777,1713882647494,-151.0,0.00020273,2]
[323302779,1713882647504,-151.0,0.00020273,2]
[323302780,1713882647516,-1342.03,0.00020273,2]
[323302782,1713882647525,-810.6,0.00020273,2]
[323302783,1713882647534,-340.60258799,0.00020273,2]
[323302785,1713882647543,-500.0,0.00020273,2]
[323302786,1713882647553,-500.0,0.00020273,2]
[323302787,1713882647562,-500.0,0.00020273,2]
[323302789,1713882647571,-500.0,0.00020273,2]
[323302790,1713882647580,-975.61,0.00020273,2]
[323302792,1713882647589,-699.75,0.00020273,2]
[323302793,1713882647597,-151.0,0.00020273,2]
[323302794,1713882647607,-521.81,0.00020273,2]
[323302796,1713882647616,-636.01,0.00020273,2]
[323302797,1713882647625,-503.60241495,0.00020273,2]
[323302799,1713882647634,-500.0,0.00020273,2]
[323302800,1713882647643,-500.0,0.00020273,2]
[323302802,1713882647652,-1113.14,0.00020273,2]
[323302803,1713882647661,-572.1,0.00020273,2]
[323302804,1713882647670,-500.0,0.00020273,2]
[323302810,1713882647766,-500.0,0.00020273,2]
[323302811,1713882647776,-500.0,0.00020273,2]
[323302812,1713882647785,-1232.81,0.00020273,2]
[323302814,1713882647794,-500.0,0.00020273,2]
[323302815,1713882647803,-786.44,0.00020273,2]
[323302817,1713882647812,-151.0,0.00020273,2]
[323302818,1713882647821,-500.0,0.00020273,2]
[323302819,1713882647831,-614.55449611,0.00020273,2]
[323302821,1713882647840,-500.0,0.00020273,2]
[323302822,1713882647849,-500.0,0.00020273,2]
[323302824,1713882647858,-500.0,0.00020273,2]
[323302825,1713882647867,-500.0,0.00020273,2]
[323302826,1713882647877,-332.37983797,0.00020273,2]
[323302828,1713882647887,-500.0,0.00020273,2]
[323302829,1713882647896,-935.633361,0.00020273,2]
[323302831,1713882647906,-935.633361,0.00020273,2]
[323302832,1713882647915,-935.633361,0.00020273,2]
[323302833,1713882647925,-935.633361,0.00020273,2]
[323302835,1713882647935,-500.0,0.00020273,2]
[323302836,1713882647944,-1291.88,0.00020273,2]
[323302838,1713882647956,-838.4,0.00020273,2]
[323302839,1713882647966,-501.35,0.00020273,2]
[323302841,1713882647976,-151.0,0.00020273,2]
[323302842,1713882647990,-151.0,0.00020273,2]
[323302843,1713882648000,-151.0,0.00020273,2]
[323302845,1713882648010,-151.0,0.00020273,2]
[323302846,1713882648023,-590.7492782,0.00020273,2]
[323302848,1713882648032,-663.24,0.00020273,2]
[323302849,1713882648042,-738.89,0.00020273,2]
[323302851,1713882648052,-538.57173457,0.00020273,2]
[323302852,1713882648063,-853.84,0.00020273,2]
[323302853,1713882648073,-1913.54,0.00020273,2]
[323302855,1713882648082,-1149.27,0.00020273,2]